[Event "December 19 Late 2023"]
[Site "https://www.chess.com"]
[Date "2023.12.19"]
[Round "1"]
[White "Rodgers, Jack"]
[Black "Novikova, Margarita"]
[Result "1-0"]
[Board "175"]
[TimeControl "180+1"]
[WhiteFideId "3220885"]
[BlackFideId "14109689"]
[WhiteElo "2107"]
[BlackElo "2090"]
[WhiteTeam "AUS"]
[BlackTeam "GER"]
[WhiteClock "0:01:22"]
[BlackClock "0:00:00"]

1. d4 {[%clk 0:03:00]}  g6 {[%clk 0:02:12]} 2. h4 {[%clk 0:02:58]}  h5 {[%clk 0:01:58]} 3. e4 {[%clk 0:02:56]}  Bg7 {[%clk 0:01:57]} 4. Nc3 {[%clk 0:02:53]}  c5 {[%clk 0:01:57]} 5. d5 {[%clk 0:02:50]}  d6 {[%clk 0:01:56]} 6. a4 {[%clk 0:02:43]}  Nf6 {[%clk 0:01:55]} 7. f3 {[%clk 0:02:41]}  e6 {[%clk 0:01:21]} 8. Bb5+ {[%clk 0:02:37]}  Bd7 {[%clk 0:01:19]} 9. dxe6 {[%clk 0:02:38]}  Bxb5 {[%clk 0:00:56]} 10. exf7+ {[%clk 0:02:37]}  Kxf7 {[%clk 0:00:54]} 11. Nxb5 {[%clk 0:02:35]}  d5 {[%clk 0:00:47]} 12. exd5 {[%clk 0:02:29]}  Re8+ {[%clk 0:00:44]} 13. Ne2 {[%clk 0:02:29]}  Nxd5 {[%clk 0:00:43]} 14. c4 {[%clk 0:02:21]}  a6 {[%clk 0:00:35]} 15. Bg5 {[%clk 0:02:16]}  Qa5+ {[%clk 0:00:32]} 16. Bd2 {[%clk 0:02:16]}  Qd8 {[%clk 0:00:30]} 17. cxd5 {[%clk 0:01:58]}  axb5 {[%clk 0:00:29]} 18. Bg5 {[%clk 0:01:45]}  Qa5+ {[%clk 0:00:27]} 19. Kf2 {[%clk 0:01:38]}  bxa4 {[%clk 0:00:26]} 20. d6 {[%clk 0:01:32]}  Nd7 {[%clk 0:00:26]} 21. Qd5+ {[%clk 0:01:31]}  Kf8 {[%clk 0:00:23]} 22. Be7+ {[%clk 0:01:30]}  Rxe7 {[%clk 0:00:22]} 23. dxe7+ {[%clk 0:01:31]}  Kxe7 {[%clk 0:00:22]} 24. Rad1 {[%clk 0:01:31]}  Qc7 {[%clk 0:00:16]} 25. Nf4 {[%clk 0:01:23]}  Bd4+ {[%clk 0:00:16]} 26. Rxd4 {[%clk 0:01:22]}  cxd4 {[%clk 0:00:15]} 27. Re1+ {[%clk 0:01:22]}  Kf8 {[%clk 0:00:00]} 28. Ne6+ {[%clk 0:01:22]} 1-0

[Event "December 19 Late 2023"]
[Site "https://www.chess.com"]
[Date "2023.12.19"]
[Round "1"]
[White "Navyblue1"]
[Black "Grutter, Tim"]
[Result "1/2-1/2"]
[Board "176"]
[TimeControl "180+1"]
[BlackFideId "1057472"]
[WhiteElo "2106"]
[BlackElo "2303"]
[BlackTeam "NED"]
[WhiteClock "0:00:03"]
[BlackClock "0:00:02"]

1. d4 {[%clk 0:02:59]}  a6 {[%clk 0:02:57]} 2. c4 {[%clk 0:02:56]}  Nf6 {[%clk 0:02:56]} 3. Nc3 {[%clk 0:02:55]}  b5 {[%clk 0:02:50]} 4. cxb5 {[%clk 0:02:50]}  axb5 {[%clk 0:02:51]} 5. Nxb5 {[%clk 0:02:49]}  g6 {[%clk 0:02:41]} 6. Nc3 {[%clk 0:02:48]}  Bg7 {[%clk 0:02:41]} 7. e4 {[%clk 0:02:47]}  d6 {[%clk 0:02:41]} 8. Nf3 {[%clk 0:02:47]}  O-O {[%clk 0:02:41]} 9. Bd3 {[%clk 0:02:45]}  Bb7 {[%clk 0:02:41]} 10. O-O {[%clk 0:02:43]}  Nc6 {[%clk 0:02:36]} 11. Be3 {[%clk 0:02:41]}  e5 {[%clk 0:02:31]} 12. d5 {[%clk 0:02:35]}  Ne7 {[%clk 0:02:25]} 13. Qd2 {[%clk 0:02:18]}  Ng4 {[%clk 0:02:24]} 14. a4 {[%clk 0:02:02]}  Nxe3 {[%clk 0:02:23]} 15. Qxe3 {[%clk 0:02:00]}  h6 {[%clk 0:02:04]} 16. a5 {[%clk 0:01:55]}  f5 {[%clk 0:02:01]} 17. a6 {[%clk 0:01:48]}  Bc8 {[%clk 0:02:00]} 18. Nd2 {[%clk 0:01:42]}  f4 {[%clk 0:01:59]} 19. Qe2 {[%clk 0:01:41]}  g5 {[%clk 0:01:59]} 20. f3 {[%clk 0:01:40]}  g4 {[%clk 0:01:59]} 21. fxg4 {[%clk 0:01:39]}  Ng6 {[%clk 0:01:54]} 22. h3 {[%clk 0:01:20]}  Bf6 {[%clk 0:01:53]} 23. Nf3 {[%clk 0:01:18]}  Bh4 {[%clk 0:01:53]} 24. Nxh4 {[%clk 0:01:10]}  Nxh4 {[%clk 0:01:50]} 25. Qf2 {[%clk 0:00:52]}  h5 {[%clk 0:01:34]} 26. gxh5 {[%clk 0:00:50]}  Qg5 {[%clk 0:01:29]} 27. Kh2 {[%clk 0:00:41]}  f3 {[%clk 0:01:21]} 28. g3 {[%clk 0:00:32]}  Ng2 {[%clk 0:01:21]} 29. g4 {[%clk 0:00:20]}  Bd7 {[%clk 0:00:46]} 30. Qg3 {[%clk 0:00:19]}  Nh4 {[%clk 0:00:35]} 31. Rf2 {[%clk 0:00:18]}  Rf4 {[%clk 0:00:32]} 32. b4 {[%clk 0:00:16]}  Bxg4 {[%clk 0:00:28]} 33. hxg4 {[%clk 0:00:16]}  Rxg4 {[%clk 0:00:29]} 34. Qh3 {[%clk 0:00:16]}  Qf4+ {[%clk 0:00:18]} 35. Kh1 {[%clk 0:00:14]}  Kh8 {[%clk 0:00:13]} 36. Rg1 {[%clk 0:00:14]}  Rxg1+ {[%clk 0:00:11]} 37. Kxg1 {[%clk 0:00:14]}  Rg8+ {[%clk 0:00:11]} 38. Kh1 {[%clk 0:00:13]}  Rg3 {[%clk 0:00:11]} 39. Qh2 {[%clk 0:00:12]}  Qg4 {[%clk 0:00:07]} 40. Bf1 {[%clk 0:00:12]}  Qg8 {[%clk 0:00:03]} 41. a7 {[%clk 0:00:12]}  Rg4 {[%clk 0:00:03]} 42. Nb5 {[%clk 0:00:10]}  Qa8 {[%clk 0:00:03]} 43. Nxc7 {[%clk 0:00:10]}  Qxa7 {[%clk 0:00:04]} 44. Ne6 {[%clk 0:00:11]}  Qe3 {[%clk 0:00:03]} 45. b5 {[%clk 0:00:10]}  Qxe4 {[%clk 0:00:02]} 46. b6 {[%clk 0:00:10]}  Nf5 {[%clk 0:00:03]} 47. b7 {[%clk 0:00:10]}  Qb4 {[%clk 0:00:03]} 48. Qh3 {[%clk 0:00:09]}  Ng3+ {[%clk 0:00:03]} 49. Kh2 {[%clk 0:00:09]}  Nxf1+ {[%clk 0:00:04]} 50. Rxf1 {[%clk 0:00:09]}  Qb2+ {[%clk 0:00:04]} 51. Kh1 {[%clk 0:00:09]}  Qg2+ {[%clk 0:00:04]} 52. Qxg2 {[%clk 0:00:09]}  fxg2+ {[%clk 0:00:05]} 53. Kg1 {[%clk 0:00:10]}  gxf1=Q+ {[%clk 0:00:05]} 54. Kxf1 {[%clk 0:00:10]}  Rb4 {[%clk 0:00:05]} 55. Nd8 {[%clk 0:00:09]}  Kg7 {[%clk 0:00:03]} 56. Ke2 {[%clk 0:00:09]}  Kf8 {[%clk 0:00:03]} 57. h6 {[%clk 0:00:09]}  Kg8 {[%clk 0:00:03]} 58. Kd3 {[%clk 0:00:09]}  Kh7 {[%clk 0:00:04]} 59. Kc3 {[%clk 0:00:09]}  Rb1 {[%clk 0:00:04]} 60. Nf7 {[%clk 0:00:08]}  Rxb7 {[%clk 0:00:04]} 61. Nxd6 {[%clk 0:00:08]}  Rd7 {[%clk 0:00:03]} 62. Nf5 {[%clk 0:00:08]}  Rxd5 {[%clk 0:00:03]} 63. Kc4 {[%clk 0:00:08]}  Rd1 {[%clk 0:00:02]} 64. Kc5 {[%clk 0:00:08]}  Kg6 {[%clk 0:00:02]} 65. Ne3 {[%clk 0:00:08]}  Rd3 {[%clk 0:00:02]} 66. Nc4 {[%clk 0:00:07]}  Rc3 {[%clk 0:00:02]} 67. Kd5 {[%clk 0:00:07]}  Rc1 {[%clk 0:00:02]} 68. Nxe5+ {[%clk 0:00:07]}  Kxh6 {[%clk 0:00:02]} 69. Nd3 {[%clk 0:00:07]}  Rd1 {[%clk 0:00:02]} 70. Kd4 {[%clk 0:00:08]}  Ra1 {[%clk 0:00:03]} 71. Ke4 {[%clk 0:00:08]}  Ra8 {[%clk 0:00:03]} 72. Ne5 {[%clk 0:00:08]}  Kg5 {[%clk 0:00:04]} 73. Nf3+ {[%clk 0:00:08]}  Kg6 {[%clk 0:00:04]} 74. Ne5+ {[%clk 0:00:08]}  Kf6 {[%clk 0:00:03]} 75. Ng4+ {[%clk 0:00:08]}  Kg5 {[%clk 0:00:03]} 76. Ne5 {[%clk 0:00:08]}  Re8 {[%clk 0:00:04]} 77. Kd5 {[%clk 0:00:08]}  Kf5 {[%clk 0:00:04]} 78. Nc4 {[%clk 0:00:09]}  Rd8+ {[%clk 0:00:03]} 79. Kc5 {[%clk 0:00:08]}  Ke6 {[%clk 0:00:03]} 80. Nb6 {[%clk 0:00:08]}  Rd1 {[%clk 0:00:02]} 81. Nc4 {[%clk 0:00:07]}  Rd5+ {[%clk 0:00:02]} 82. Kb4 {[%clk 0:00:07]}  Rd4 {[%clk 0:00:02]} 83. Kc3 {[%clk 0:00:07]}  Rh4 {[%clk 0:00:02]} 84. Kd3 {[%clk 0:00:07]}  Kd5 {[%clk 0:00:02]} 85. Ne3+ {[%clk 0:00:07]}  Kc5 {[%clk 0:00:03]} 86. Nc2 {[%clk 0:00:06]}  Rh3+ {[%clk 0:00:03]} 87. Ne3 {[%clk 0:00:06]}  Rg3 {[%clk 0:00:02]} 88. Ke4 {[%clk 0:00:06]}  Rg8 {[%clk 0:00:02]} 89. Kd3 {[%clk 0:00:06]}  Rd8+ {[%clk 0:00:03]} 90. Ke4 {[%clk 0:00:07]}  Re8+ {[%clk 0:00:03]} 91. Kd3 {[%clk 0:00:07]}  Re7 {[%clk 0:00:02]} 92. Nc2 {[%clk 0:00:06]}  Kd5 {[%clk 0:00:02]} 93. Ne3+ {[%clk 0:00:06]}  Ke5 {[%clk 0:00:03]} 94. Nc4+ {[%clk 0:00:06]}  Kf4 {[%clk 0:00:03]} 95. Kd4 {[%clk 0:00:06]}  Rd7+ {[%clk 0:00:04]} 96. Kc5 {[%clk 0:00:06]}  Ke4 {[%clk 0:00:04]} 97. Nd6+ {[%clk 0:00:06]}  Ke5 {[%clk 0:00:04]} 98. Nc4+ {[%clk 0:00:07]}  Ke6 {[%clk 0:00:04]} 99. Kc6 {[%clk 0:00:05]}  Rd5 {[%clk 0:00:04]} 100. Nb6 {[%clk 0:00:06]}  Rd6+ {[%clk 0:00:04]} 101. Kc5 {[%clk 0:00:06]}  Rd1 {[%clk 0:00:04]} 102. Nc4 {[%clk 0:00:05]}  Rh1 {[%clk 0:00:03]} 103. Kd4 {[%clk 0:00:05]}  Rh5 {[%clk 0:00:03]} 104. Ne3 {[%clk 0:00:05]}  Kd6 {[%clk 0:00:04]} 105. Nc4+ {[%clk 0:00:04]}  Kc6 {[%clk 0:00:04]} 106. Ne5+ {[%clk 0:00:04]}  Kb5 {[%clk 0:00:04]} 107. Nd3 {[%clk 0:00:04]}  Rh4+ {[%clk 0:00:04]} 108. Ke5 {[%clk 0:00:05]}  Kc4 {[%clk 0:00:03]} 109. Nf4 {[%clk 0:00:05]}  Rg4 {[%clk 0:00:02]} 110. Kf5 {[%clk 0:00:05]}  Rg8 {[%clk 0:00:02]} 111. Ke5 {[%clk 0:00:05]}  Kc5 {[%clk 0:00:02]} 112. Ke4 {[%clk 0:00:05]}  Re8+ {[%clk 0:00:02]} 113. Kf5 {[%clk 0:00:05]}  Kd6 {[%clk 0:00:01]} 114. Kg4 {[%clk 0:00:04]}  Rf8 {[%clk 0:00:01]} 115. Nd3 {[%clk 0:00:03]}  Kd5 {[%clk 0:00:02]} 116. Nf4+ {[%clk 0:00:03]}  Ke4 {[%clk 0:00:02]} 117. Nh5 {[%clk 0:00:03]}  Rg8+ {[%clk 0:00:02]} 118. Kh4 {[%clk 0:00:03]}  Kf5 {[%clk 0:00:02]} 1/2-1/2

[Event "December 19 Late 2023"]
[Site "https://www.chess.com"]
[Date "2023.12.19"]
[Round "1"]
[White "Zimmermann, Ulrich"]
[Black "Ivanov, Aleksandr"]
[Result "1-0"]
[Board "177"]
[TimeControl "180+1"]
[WhiteFideId "24654523"]
[BlackFideId "2092980"]
[WhiteElo "2223"]
[BlackElo "2101"]
[WhiteTeam "GER"]
[BlackTeam "USA"]
[WhiteClock "0:01:08"]
[BlackClock "0:00:07"]

1. Nf3 {[%clk 0:03:00]}  d5 {[%clk 0:02:59]} 2. g3 {[%clk 0:03:01]}  g6 {[%clk 0:02:57]} 3. Bg2 {[%clk 0:03:02]}  Bg7 {[%clk 0:02:57]} 4. O-O {[%clk 0:03:03]}  e5 {[%clk 0:02:57]} 5. d3 {[%clk 0:03:02]}  Ne7 {[%clk 0:02:55]} 6. c4 {[%clk 0:03:02]}  c6 {[%clk 0:02:54]} 7. Nbd2 {[%clk 0:02:58]}  O-O {[%clk 0:02:53]} 8. a3 {[%clk 0:02:58]}  h6 {[%clk 0:02:49]} 9. Rb1 {[%clk 0:02:58]}  Be6 {[%clk 0:02:48]} 10. Qc2 {[%clk 0:02:57]}  Nd7 {[%clk 0:02:45]} 11. b4 {[%clk 0:02:57]}  Rc8 {[%clk 0:02:39]} 12. Bb2 {[%clk 0:02:56]}  Kh7 {[%clk 0:02:35]} 13. Nb3 {[%clk 0:02:51]}  d4 {[%clk 0:02:34]} 14. Rfe1 {[%clk 0:02:47]}  f5 {[%clk 0:02:31]} 15. e3 {[%clk 0:02:47]}  dxe3 {[%clk 0:02:15]} 16. Rxe3 {[%clk 0:02:47]}  f4 {[%clk 0:01:51]} 17. Ree1 {[%clk 0:02:41]}  fxg3 {[%clk 0:01:44]} 18. hxg3 {[%clk 0:02:42]}  Qc7 {[%clk 0:01:35]} 19. Nc5 {[%clk 0:02:35]}  Nxc5 {[%clk 0:01:32]} 20. bxc5 {[%clk 0:02:36]}  Rxf3 {[%clk 0:01:10]} 21. Bxf3 {[%clk 0:02:34]}  Nf5 {[%clk 0:01:08]} 22. Re4 {[%clk 0:02:26]}  Qf7 {[%clk 0:00:57]} 23. Bg2 {[%clk 0:02:24]}  Nd4 {[%clk 0:00:56]} 24. Bxd4 {[%clk 0:02:23]}  exd4 {[%clk 0:00:56]} 25. Rbe1 {[%clk 0:02:24]}  Bf5 {[%clk 0:00:53]} 26. Re7 {[%clk 0:02:24]}  Qf6 {[%clk 0:00:51]} 27. Rxb7 {[%clk 0:02:24]}  Rf8 {[%clk 0:00:51]} 28. Ree7 {[%clk 0:02:23]}  Rg8 {[%clk 0:00:49]} 29. Qe2 {[%clk 0:02:12]}  g5 {[%clk 0:00:47]} 30. Rxa7 {[%clk 0:02:10]}  Qg6 {[%clk 0:00:47]} 31. Be4 {[%clk 0:02:08]}  Kh8 {[%clk 0:00:34]} 32. Bxf5 {[%clk 0:01:16]}  Qxf5 {[%clk 0:00:33]} 33. Qe4 {[%clk 0:01:17]}  Qf6 {[%clk 0:00:21]} 34. Re6 {[%clk 0:01:08]}  Qf8 {[%clk 0:00:07]} 35. Rxh6+ {[%clk 0:01:08]} 1-0

[Event "December 19 Late 2023"]
[Site "https://www.chess.com"]
[Date "2023.12.19"]
[Round "1"]
[White "Oliveira, Tiago Batista"]
[Black "Osmak, Yuliia"]
[Result "0-1"]
[Board "178"]
[TimeControl "180+1"]
[WhiteFideId "2108291"]
[BlackFideId "14101602"]
[WhiteElo "1962"]
[BlackElo "2303"]
[WhiteTeam "BRA"]
[BlackTeam "UKR"]
[WhiteClock "0:00:00"]
[BlackClock "0:00:04"]

1. d4 {[%clk 0:02:59]}  f5 {[%clk 0:02:56]} 2. g3 {[%clk 0:02:55]}  Nf6 {[%clk 0:02:55]} 3. Bg2 {[%clk 0:02:54]}  g6 {[%clk 0:02:52]} 4. Nf3 {[%clk 0:02:53]}  Bg7 {[%clk 0:02:52]} 5. O-O {[%clk 0:02:53]}  O-O {[%clk 0:02:52]} 6. c4 {[%clk 0:02:52]}  d6 {[%clk 0:02:52]} 7. Nc3 {[%clk 0:02:52]}  Nc6 {[%clk 0:02:51]} 8. d5 {[%clk 0:02:47]}  Ne5 {[%clk 0:02:50]} 9. Nxe5 {[%clk 0:02:39]}  dxe5 {[%clk 0:02:51]} 10. e4 {[%clk 0:02:34]}  f4 {[%clk 0:02:51]} 11. gxf4 {[%clk 0:02:21]}  exf4 {[%clk 0:02:52]} 12. e5 {[%clk 0:02:20]}  Ng4 {[%clk 0:02:48]} 13. e6 {[%clk 0:02:11]}  Ne5 {[%clk 0:02:48]} 14. Re1 {[%clk 0:00:57]}  Nxc4 {[%clk 0:02:40]} 15. Qg4 {[%clk 0:00:54]}  Ne5 {[%clk 0:02:29]} 16. Qg5 {[%clk 0:00:38]}  h6 {[%clk 0:02:27]} 17. Qh4 {[%clk 0:00:37]}  g5 {[%clk 0:02:27]} 18. Qh5 {[%clk 0:00:28]}  f3 {[%clk 0:02:04]} 19. Rxe5 {[%clk 0:00:15]}  Bxe5 {[%clk 0:01:53]} 20. Bxf3 {[%clk 0:00:15]}  Bg7 {[%clk 0:01:49]} 21. Be4 {[%clk 0:00:11]}  Rf6 {[%clk 0:01:43]} 22. h4 {[%clk 0:00:09]}  gxh4 {[%clk 0:01:32]} 23. Be3 {[%clk 0:00:06]}  Qf8 {[%clk 0:01:05]} 24. Kh1 {[%clk 0:00:04]}  c6 {[%clk 0:00:19]} 25. Rg1 {[%clk 0:00:03]}  Kh8 {[%clk 0:00:19]} 26. Bd4 {[%clk 0:00:03]}  cxd5 {[%clk 0:00:13]} 27. Bxf6 {[%clk 0:00:02]}  exf6 {[%clk 0:00:05]} 28. Nxd5 {[%clk 0:00:01]}  Bxe6 {[%clk 0:00:04]} 29. Nf4 {[%clk 0:00:00]}  Bf7 {[%clk 0:00:04]} 0-1

[Event "December 19 Late 2023"]
[Site "https://www.chess.com"]
[Date "2023.12.19"]
[Round "1"]
[White "De Souza, Arthur Olintho"]
[Black "Stojanovski, Sandi"]
[Result "0-1"]
[Board "180"]
[TimeControl "180+1"]
[WhiteFideId "2116200"]
[BlackFideId "1403249"]
[WhiteElo "2056"]
[BlackElo "2532"]
[WhiteTeam "BRA"]
[BlackTeam "DEN"]
[WhiteClock "0:01:29"]
[BlackClock "0:01:42"]

1. e4 {[%clk 0:02:59]}  d6 {[%clk 0:03:00]} 2. d4 {[%clk 0:02:59]}  Nf6 {[%clk 0:03:00]} 3. Nc3 {[%clk 0:02:59]}  g6 {[%clk 0:03:00]} 4. h3 {[%clk 0:02:59]}  Bg7 {[%clk 0:03:00]} 5. Be3 {[%clk 0:03:00]}  O-O {[%clk 0:03:00]} 6. Qd2 {[%clk 0:03:00]}  e5 {[%clk 0:02:55]} 7. g4 {[%clk 0:03:00]}  exd4 {[%clk 0:02:54]} 8. Bxd4 {[%clk 0:03:00]}  Nc6 {[%clk 0:02:23]} 9. Be3 {[%clk 0:02:59]}  Re8 {[%clk 0:02:22]} 10. Bg2 {[%clk 0:02:57]}  Ne5 {[%clk 0:02:06]} 11. f4 {[%clk 0:02:27]}  Nc4 {[%clk 0:02:05]} 12. Qc1 {[%clk 0:02:22]}  d5 {[%clk 0:01:58]} 13. Nge2 {[%clk 0:01:41]}  Nxe4 {[%clk 0:01:45]} 14. O-O {[%clk 0:01:32]}  Nxc3 {[%clk 0:01:43]} 15. Nxc3 {[%clk 0:01:29]}  Nxe3 {[%clk 0:01:42]} 0-1

[Event "December 19 Late 2023"]
[Site "https://www.chess.com"]
[Date "2023.12.19"]
[Round "1"]
[White "Senft, Sean"]
[Black "Ghosh, Chanchal Kumer"]
[Result "1-0"]
[Board "181"]
[TimeControl "180+1"]
[WhiteFideId "2044960"]
[BlackFideId "10201858"]
[WhiteElo "2005"]
[BlackElo "2067"]
[WhiteTeam "USA"]
[BlackTeam "BAN"]
[WhiteClock "0:01:04"]
[BlackClock "0:00:00"]

1. d4 {[%clk 0:02:52]}  d5 {[%clk 0:02:52]} 2. c4 {[%clk 0:02:52]}  c6 {[%clk 0:02:37]} 3. Nc3 {[%clk 0:02:53]}  Nf6 {[%clk 0:02:36]} 4. Nf3 {[%clk 0:02:52]}  Bf5 {[%clk 0:02:31]} 5. cxd5 {[%clk 0:02:51]}  cxd5 {[%clk 0:02:30]} 6. Qb3 {[%clk 0:02:51]}  b6 {[%clk 0:02:03]} 7. Bf4 {[%clk 0:02:48]}  a6 {[%clk 0:01:43]} 8. e3 {[%clk 0:02:46]}  e6 {[%clk 0:01:42]} 9. h3 {[%clk 0:02:36]}  Bd6 {[%clk 0:01:39]} 10. Ne5 {[%clk 0:02:34]}  O-O {[%clk 0:01:37]} 11. Be2 {[%clk 0:02:34]}  h6 {[%clk 0:01:36]} 12. O-O {[%clk 0:02:34]}  b5 {[%clk 0:01:35]} 13. Rac1 {[%clk 0:02:35]}  Qe7 {[%clk 0:01:28]} 14. a4 {[%clk 0:02:34]}  b4 {[%clk 0:01:27]} 15. Nb1 {[%clk 0:02:29]}  Nfd7 {[%clk 0:01:12]} 16. Nd2 {[%clk 0:02:22]}  Nxe5 {[%clk 0:00:58]} 17. dxe5 {[%clk 0:02:21]}  Bc7 {[%clk 0:00:58]} 18. Nf3 {[%clk 0:02:17]}  Bb6 {[%clk 0:00:53]} 19. Bd3 {[%clk 0:01:58]}  Bxd3 {[%clk 0:00:35]} 20. Qxd3 {[%clk 0:01:58]}  Nd7 {[%clk 0:00:33]} 21. Rc2 {[%clk 0:01:59]}  Rfc8 {[%clk 0:00:32]} 22. Rfc1 {[%clk 0:01:59]}  Rxc2 {[%clk 0:00:31]} 23. Qxc2 {[%clk 0:01:59]}  Nc5 {[%clk 0:00:28]} 24. Nd4 {[%clk 0:02:00]}  Ne4 {[%clk 0:00:16]} 25. Qc6 {[%clk 0:01:54]}  Rb8 {[%clk 0:00:15]} 26. f3 {[%clk 0:01:42]}  Ng5 {[%clk 0:00:11]} 27. Qd6 {[%clk 0:01:36]}  Qe8 {[%clk 0:00:09]} 28. Nc6 {[%clk 0:01:31]}  Rb7 {[%clk 0:00:10]} 29. Nxb4 {[%clk 0:01:22]}  Nh7 {[%clk 0:00:07]} 30. Qc6 {[%clk 0:01:12]}  Rb8 {[%clk 0:00:04]} 31. Qxe8+ {[%clk 0:01:10]}  Rxe8 {[%clk 0:00:05]} 32. Rc6 {[%clk 0:01:08]}  Rb8 {[%clk 0:00:04]} 33. Nxa6 {[%clk 0:01:08]}  Rb7 {[%clk 0:00:04]} 34. Rc8+ {[%clk 0:01:08]}  Nf8 {[%clk 0:00:04]} 35. Rb8 {[%clk 0:01:06]}  Rxb8 {[%clk 0:00:03]} 36. Nxb8 {[%clk 0:01:07]}  g5 {[%clk 0:00:03]} 37. Bg3 {[%clk 0:01:06]}  Bxe3+ {[%clk 0:00:03]} 38. Bf2 {[%clk 0:01:06]}  Bc1 {[%clk 0:00:04]} 39. a5 {[%clk 0:01:03]}  Bxb2 {[%clk 0:00:04]} 40. a6 {[%clk 0:01:04]}  Bxe5 {[%clk 0:00:00]} 41. a7 {[%clk 0:01:04]} 1-0

[Event "December 19 Late 2023"]
[Site "https://www.chess.com"]
[Date "2023.12.19"]
[Round "1"]
[White "Colbow, Collin"]
[Black "Stead, Kerry"]
[Result "1-0"]
[Board "183"]
[TimeControl "180+1"]
[WhiteFideId "16201132"]
[BlackFideId "3202577"]
[WhiteElo "2321"]
[BlackElo "1997"]
[WhiteTeam "GER"]
[BlackTeam "AUS"]
[WhiteClock "0:00:19"]
[BlackClock "0:00:18"]

1. d4 {[%clk 0:02:56]}  c5 {[%clk 0:02:59]} 2. c3 {[%clk 0:02:47]}  d5 {[%clk 0:02:57]} 3. Nf3 {[%clk 0:02:45]}  Nc6 {[%clk 0:02:55]} 4. Bf4 {[%clk 0:02:46]}  Bg4 {[%clk 0:02:53]} 5. e3 {[%clk 0:02:45]}  e6 {[%clk 0:02:49]} 6. Nbd2 {[%clk 0:02:43]}  Nf6 {[%clk 0:02:36]} 7. Bd3 {[%clk 0:02:43]}  Bd6 {[%clk 0:02:34]} 8. Bg3 {[%clk 0:02:42]}  h5 {[%clk 0:02:31]} 9. Qe2 {[%clk 0:02:37]}  h4 {[%clk 0:02:27]} 10. Bxd6 {[%clk 0:02:36]}  Qxd6 {[%clk 0:02:20]} 11. h3 {[%clk 0:02:36]}  Bh5 {[%clk 0:02:17]} 12. O-O {[%clk 0:02:07]}  c4 {[%clk 0:02:13]} 13. Bc2 {[%clk 0:02:06]}  O-O-O {[%clk 0:02:10]} 14. e4 {[%clk 0:02:00]}  Qf4 {[%clk 0:01:55]} 15. e5 {[%clk 0:01:51]}  Nd7 {[%clk 0:01:44]} 16. Qe3 {[%clk 0:01:51]}  Qxe3 {[%clk 0:01:39]} 17. fxe3 {[%clk 0:01:52]}  f6 {[%clk 0:01:32]} 18. Nxh4 {[%clk 0:01:46]}  fxe5 {[%clk 0:01:28]} 19. Nhf3 {[%clk 0:01:40]}  exd4 {[%clk 0:01:24]} 20. exd4 {[%clk 0:01:41]}  Rhf8 {[%clk 0:01:21]} 21. Rae1 {[%clk 0:01:40]}  Rde8 {[%clk 0:01:20]} 22. g4 {[%clk 0:01:35]}  Bf7 {[%clk 0:01:19]} 23. Ng5 {[%clk 0:01:35]}  Bg8 {[%clk 0:01:18]} 24. Bg6 {[%clk 0:01:34]}  Rxf1+ {[%clk 0:01:16]} 25. Rxf1 {[%clk 0:01:28]}  Rf8 {[%clk 0:01:16]} 26. Rxf8+ {[%clk 0:01:22]}  Nxf8 {[%clk 0:01:12]} 27. Bc2 {[%clk 0:01:15]}  e5 {[%clk 0:01:09]} 28. dxe5 {[%clk 0:01:10]}  Nxe5 {[%clk 0:01:08]} 29. Kf2 {[%clk 0:01:10]}  Kd7 {[%clk 0:01:07]} 30. Ke3 {[%clk 0:01:04]}  Kd6 {[%clk 0:01:05]} 31. Nf1 {[%clk 0:00:52]}  Ne6 {[%clk 0:01:02]} 32. Nxe6 {[%clk 0:00:50]}  Bxe6 {[%clk 0:01:01]} 33. Ng3 {[%clk 0:00:51]}  g6 {[%clk 0:00:57]} 34. Ne2 {[%clk 0:00:45]}  Bf7 {[%clk 0:00:52]} 35. Nd4 {[%clk 0:00:44]}  a6 {[%clk 0:00:51]} 36. a4 {[%clk 0:00:42]}  Nc6 {[%clk 0:00:50]} 37. Nxc6 {[%clk 0:00:38]}  bxc6 {[%clk 0:00:49]} 38. b4 {[%clk 0:00:27]}  cxb3 {[%clk 0:00:48]} 39. Bxb3 {[%clk 0:00:28]}  Ke5 {[%clk 0:00:47]} 40. a5 {[%clk 0:00:25]}  c5 {[%clk 0:00:47]} 41. Bd1 {[%clk 0:00:10]}  Be8 {[%clk 0:00:44]} 42. Be2 {[%clk 0:00:10]}  c4 {[%clk 0:00:43]} 43. Bd1 {[%clk 0:00:07]}  g5 {[%clk 0:00:40]} 44. Bc2 {[%clk 0:00:07]}  Bd7 {[%clk 0:00:39]} 45. Bg6 {[%clk 0:00:06]}  Bc6 {[%clk 0:00:34]} 46. Bf5 {[%clk 0:00:06]}  Be8 {[%clk 0:00:32]} 47. Bc8 {[%clk 0:00:07]}  Bb5 {[%clk 0:00:31]} 48. Bb7 {[%clk 0:00:08]}  Ke6 {[%clk 0:00:29]} 49. Kd4 {[%clk 0:00:09]}  Kd6 {[%clk 0:00:24]} 50. Bxd5 {[%clk 0:00:09]}  Ba4 {[%clk 0:00:21]} 51. Bxc4 {[%clk 0:00:10]}  Bd1 {[%clk 0:00:20]} 52. Bxa6 {[%clk 0:00:10]}  Bf3 {[%clk 0:00:20]} 53. Bf1 {[%clk 0:00:10]}  Kc6 {[%clk 0:00:19]} 54. a6 {[%clk 0:00:11]}  Kb6 {[%clk 0:00:19]} 55. Ke5 {[%clk 0:00:11]}  Bc6 {[%clk 0:00:14]} 56. Kf5 {[%clk 0:00:11]}  Bd7+ {[%clk 0:00:14]} 57. Kxg5 {[%clk 0:00:11]}  Bc8 {[%clk 0:00:15]} 58. h4 {[%clk 0:00:11]}  Bxa6 {[%clk 0:00:13]} 59. Bxa6 {[%clk 0:00:12]}  Kxa6 {[%clk 0:00:13]} 60. h5 {[%clk 0:00:13]}  Kb5 {[%clk 0:00:14]} 61. h6 {[%clk 0:00:14]}  Kc4 {[%clk 0:00:15]} 62. h7 {[%clk 0:00:15]}  Kxc3 {[%clk 0:00:15]} 63. h8=Q+ {[%clk 0:00:16]}  Kd3 {[%clk 0:00:16]} 64. Kf5 {[%clk 0:00:16]}  Ke3 {[%clk 0:00:16]} 65. g5 {[%clk 0:00:17]}  Kf3 {[%clk 0:00:17]} 66. g6 {[%clk 0:00:18]}  Kg3 {[%clk 0:00:17]} 67. g7 {[%clk 0:00:19]}  Kf3 {[%clk 0:00:18]} 68. g8=Q {[%clk 0:00:19]}  Ke3 {[%clk 0:00:18]} 69. Qc3+ {[%clk 0:00:19]} 1-0